[Event "Niedersachsen-ch B 2024"]
[Site "Verden Aller"]
[Date "2024.01.06"]
[Round "6.5"]
[White "Woellermann, Ludger"]
[Black "Berkenkamp, Matthis"]
[Result "0-1"]
[ECO "A07"]
[WhiteElo "1829"]
[BlackElo "1425"]
[Annotator "NA RC"]
[PlyCount "48"]
[EventDate "2024.01.01"]
[EventType "swiss"]
[EventCountry "GER"]
[SourceTitle "playchess.com"]
[Source "ChessBase"]
[SourceQuality "1"]
[TimeControl "40/5400+30:1800+30"]

1. Nf3 {[%emt 0:00:06]} d5 {[%emt 0:00:19]} 2. g3 {[%emt 0:00:22]} c6 {[%emt 0:00:13]} 3. Bg2 {[%emt 0:00:23]} f5 {[%emt 0:00:50]} 4. d3 {[%emt 0:00:43]} Nf6 {[%emt 0:01:04]} 5. Nbd2 {[%emt 0:02:25]} Nbd7 {[%emt 0:00:18]} 6. O-O {[%emt 0:00:41]} e6 {[%emt 0:00:20]} 7. b3 {[%emt 0:01:17]} Bd6 {[%emt 0:01:21]} 8. Bb2 {[%emt 0:01:12]} O-O {[%emt 0:01:57]} 9. Re1 {[%emt 0:04:09]} Nb6 {[%emt 0:06:40]} 10. e4 {[%emt 0:02:40]} fxe4 {[%emt 0:01:10]} 11. dxe4 {[%emt 0:04:44]} Bc5 {[%emt 0:00:46]} 12. h3 {[%emt 0:06:18]} Bd7 {[%emt 0:03:32]} 13. Bd4 {[%emt 0:07:56]} Bxd4 {[%emt 0:09:44]} 14. Nxd4 {[%emt 0:01:43]} c5 {[%emt 0:02:08]} 15. N4f3 {[%emt 0:03:39]} Qc7 {[%emt 0:04:24]} 16. e5 {[%emt 0:06:58]} Nh5 {[%emt 0:06:31]} 17. Ng5 {[%emt 0:07:28]} g6 {[%emt 0:01:47]} 18. Bf3 {[%emt 0:01:43]} Ng7 {[%emt 0:00:37]} 19. h4 {[%emt 0:01:25]} Rf5 {[%emt 0:02:16]} 20. c4 {[%emt 0:07:02]} Rxe5 {[%emt 0:02:37]} 21. cxd5 {[%emt 0:01:23]} exd5 {[%emt 0:01:17]} 22. Rxe5 {[%emt 0:03:40]} Qxe5 {[%emt 0:00:26]} 23. Rc1 {[%emt 0:00:30]} h6 {[%emt 0:04:39]} 24. Qc2 {[%emt 0:04:33]} Bf5 {[%emt 0:04:00]} 0-1

[Event "Niedersachsen-ch B 2024"]
[Site "Verden Aller"]
[Date "2024.01.06"]
[Round "6.7"]
[White "Pac, Maksym"]
[Black "Kewe, Stefan"]
[Result "0-1"]
[ECO "A43"]
[WhiteElo "1416"]
[BlackElo "1737"]
[Annotator "NA RC"]
[PlyCount "52"]
[EventDate "2024.01.01"]
[EventType "swiss"]
[EventCountry "GER"]
[SourceTitle "playchess.com"]
[Source "ChessBase"]
[SourceQuality "1"]
[TimeControl "40/5400+30:1800+30"]

1. d4 {[%emt 0:00:01]} Nf6 {[%emt 0:00:09]} 2. Nc3 {[%emt 0:00:02]} c5 {[%emt 0:00:19]} 3. d5 {[%emt 0:00:06]} d6 {[%emt 0:01:07]} 4. e4 {[%emt 0:01:03]} g6 {[%emt 0:00:09]} 5. Be2 {[%emt 0:03:54]} Bg7 {[%emt 0:00:07]} 6. Nf3 {[%emt 0:00:05]} O-O {[%emt 0:00:20]} 7. O-O {[%emt 0:00:29]} a6 {[%emt 0:00:14]} 8. a4 {[%emt 0:00:04]} Bg4 {[%emt 0:03:00]} 9. h3 {[%emt 0:06:19]} Bxf3 {[%emt 0:00:11]} 10. Bxf3 {[%emt 1:23:27]} Nbd7 {[%emt 0:00:10]} 11. Bf4 {[%emt 0:00:00]} Rb8 {[%emt 0:03:06]} 12. Qd3 {[%emt 0:00:00]} Qc7 {[%emt 0:01:08]} 13. Be2 {[%emt 0:00:00]} Rfc8 {[%emt 0:01:07]} 14. Qc4 {[%emt 0:00:00]} Nb6 {[%emt 0:03:25]} 15. Qd3 {[%emt 0:00:00]} c4 {[%emt 0:00:35]} 16. Qe3 {[%emt 0:00:00]} Nbd7 {[%emt 0:00:52]} 17. a5 {[%emt 0:00:00]} b5 {[%emt 0:01:52]} 18. axb6 {[%emt 0:00:00]} Rxb6 {[%emt 0:03:39]} 19. Ra4 {[%emt 0:00:00]} Rxb2 {[%emt 0:03:50]} 20. Rxa6 {[%emt 0:00:00]} Qb7 {[%emt 0:01:52]} 21. Ra4 {[%emt 0:00:00]} Ne8 {[%emt 0:04:22]} 22. Bxc4 {[%emt 0:00:00]} Qb6 {[%emt 0:06:10]} 23. Qd2 {[%emt 0:00:00]} Nc5 {[%emt 0:01:28]} 24. Be3 {[%emt 0:00:00]} Bxc3 {[%emt 0:12:14]} 25. Qxc3 {[%emt 0:00:00]} Nxa4 {[%emt 0:00:09]} 26. Qa3 {[%emt 0:00:00]} Qb4 {[%emt 0:00:56]} 0-1

[Event "Niedersachsen-ch B 2024"]
[Site "Verden Aller"]
[Date "2024.01.06"]
[Round "6.8"]
[White "Spieker, Hans-Joachim"]
[Black "Kesselhut, Pascal"]
[Result "1/2-1/2"]
[ECO "E01"]
[WhiteElo "1719"]
[BlackElo "1425"]
[Annotator "NA RC"]
[PlyCount "61"]
[EventDate "2024.01.01"]
[EventType "swiss"]
[EventCountry "GER"]
[SourceTitle "playchess.com"]
[Source "ChessBase"]
[SourceQuality "1"]
[TimeControl "40/5400+30:1800+30"]

1. Nf3 {[%emt 0:05:19]} d5 {[%emt 1:31:00]} 2. c4 {[%emt 0:00:01]} Nf6 {[%emt 0:00:00]} 3. g3 {[%emt 0:00:05]} e6 {[%emt 0:00:00]} 4. Bg2 {[%emt 0:00:02]} c5 {[%emt 0:00:00]} 5. cxd5 {[%emt 0:00:10]} exd5 {[%emt 0:00:00]} 6. d4 {[%emt 0:00:05]} Nc6 {[%emt 0:00:00]} 7. O-O {[%emt 0:00:07]} cxd4 {[%emt 0:00:00]} 8. Nxd4 {[%emt 0:00:31]} Bc5 {[%emt 0:00:00]} 9. Nb3 {[%emt 0:02:50]} Be7 {[%emt 0:00:00]} 10. N1d2 {[%emt 0:00:45]} O-O {[%emt 0:00:00]} 11. Nf3 {[%emt 0:00:06]} Be6 {[%emt 0:00:00]} 12. a3 {[%emt 0:00:15]} Rc8 {[%emt 0:00:00]} 13. Nbd4 {[%emt 0:00:06]} h6 {[%emt 0:00:00]} 14. b4 {[%emt 0:00:09]} Qd7 {[%emt 0:00:00]} 15. Nxe6 {[%emt 0:00:44]} fxe6 {[%emt 0:00:00]} 16. Bb2 {[%emt 0:00:06]} Bd6 {[%emt 0:00:00]} 17. Qa4 {[%emt 0:01:35]} a6 {[%emt 0:00:00]} 18. Rac1 {[%emt 0:00:44]} e5 {[%emt 0:00:00]} 19. Rfd1 {[%emt 0:00:53]} Qf7 {[%emt 0:00:00]} 20. Rxc6 {[%emt 0:13:20]} Rxc6 {[%emt 0:00:00]} 21. Nxe5 {[%emt 0:00:41]} Bxe5 {[%emt 0:00:00]} 22. Bxe5 {[%emt 0:00:02]} Ne4 {[%emt 0:00:00]} 23. f4 {[%emt 1:13:24]} Rfc8 {[%emt 0:00:00]} 24. Bf3 {[%emt 0:00:00]} Rc2 {[%emt 0:00:00]} 25. Qb3 {[%emt 0:00:00]} R8c4 {[%emt 0:00:00]} 26. Qd3 {[%emt 0:00:00]} Rc1 {[%emt 0:00:00]} 27. Kg2 {[%emt 0:00:00]} Rxd1 {[%emt 0:00:00]} 28. Qxd1 {[%emt 0:00:00]} Qd7 {[%emt 0:00:00]} 29. Qd3 {[%emt 0:00:00]} Qc6 {[%emt 0:00:00]} 30. Qe3 {[%emt 0:00:00]} Kh7 {[%emt 0:00:00]} 31. g4 {[%emt 0:00:00]} 1/2-1/2

[Event "Niedersachsen-ch B 2024"]
[Site "Verden Aller"]
[Date "2024.01.06"]
[Round "6.9"]
[White "Schoettker, Jochen"]
[Black "Bangert, Jonas"]
[Result "1/2-1/2"]
[ECO "A00"]
[WhiteElo "1875"]
[BlackElo "1527"]
[Annotator "NA RC"]
[PlyCount "114"]
[EventDate "2024.01.01"]
[EventType "swiss"]
[EventCountry "GER"]
[SourceTitle "playchess.com"]
[Source "ChessBase"]
[SourceQuality "1"]
[TimeControl "40/5400+30:1800+30"]

1. b4 {[%emt 0:01:37]} d5 {[%emt 0:01:08]} 2. Bb2 {[%emt 0:00:05]} Nf6 {[%emt 0:01:03]} 3. e3 {[%emt 0:00:09]} Bg4 {[%emt 0:03:07]} 4. Be2 {[%emt 0:01:42]} Bxe2 {[%emt 0:00:07]} 5. Qxe2 {[%emt 0:00:11]} Nbd7 {[%emt 0:01:47]} 6. f4 {[%emt 0:00:52]} e6 {[%emt 0:00:55]} 7. a3 {[%emt 0:00:10]} a6 {[%emt 0:07:58]} 8. Nf3 {[%emt 0:01:49]} c5 {[%emt 0:00:51]} 9. bxc5 {[%emt 0:04:44]} Bxc5 {[%emt 0:01:00]} 10. O-O {[%emt 0:00:45]} O-O {[%emt 0:10:17]} 11. c4 {[%emt 0:02:35]} dxc4 {[%emt 0:03:20]} 12. Qxc4 {[%emt 0:00:38]} b5 {[%emt 0:01:38]} 13. Qe2 {[%emt 0:00:56]} Nb6 {[%emt 0:01:48]} 14. Bxf6 {[%emt 0:03:28]} Qxf6 {[%emt 0:01:52]} 15. d4 {[%emt 0:00:10]} Be7 {[%emt 0:05:19]} 16. Nbd2 {[%emt 0:01:37]} Rfc8 {[%emt 0:02:03]} 17. Qd3 {[%emt 0:03:16]} Qg6 {[%emt 0:08:47]} 18. e4 {[%emt 0:02:28]} Qh5 {[%emt 0:09:59]} 19. Rfc1 {[%emt 0:02:05]} g5 {[%emt 0:08:39]} 20. fxg5 {[%emt 0:22:03]} Bxg5 {[%emt 0:00:55]} 21. Nxg5 {[%emt 0:00:11]} Qxg5 {[%emt 0:00:29]} 22. Rf1 {[%emt 0:01:01]} Nc4 {[%emt 0:01:28]} 23. Nxc4 {[%emt 0:01:37]} Rxc4 {[%emt 0:00:28]} 24. Rad1 {[%emt 0:03:19]} Rac8 {[%emt 0:04:11]} 25. Rf3 {[%emt 0:01:18]} Qe7 {[%emt 0:03:04]} 26. Rg3+ {[%emt 0:02:02]} Kh8 {[%emt 0:00:11]} 27. d5 {[%emt 0:01:22]} exd5 {[%emt 0:01:01]} 28. exd5 {[%emt 0:00:17]} Re4 {[%emt 0:12:01]} 29. Rf3 {[%emt 0:14:05]} Rd8 {[%emt 0:06:02]} 30. d6 {[%emt 0:07:25]} Re1+ {[%emt 0:00:23]} 31. Rxe1 {[%emt 0:00:11]} Qxe1+ {[%emt 0:00:04]} 32. Rf1 {[%emt 0:00:08]} Qe6 {[%emt 0:01:28]} 33. Qd4+ {[%emt 0:03:52]} Kg8 {[%emt 0:00:01]} 34. Rd1 {[%emt 0:00:23]} a5 {[%emt 0:02:38]} 35. h3 {[%emt 0:00:05]} Rd7 {[%emt 0:01:06]} 36. Rd3 {[%emt 0:00:01]} f6 {[%emt 0:00:44]} 37. Qc5 {[%emt 0:03:08]} Qe1+ {[%emt 0:00:22]} 38. Kh2 {[%emt 0:00:26]} Qe5+ {[%emt 0:00:08]} 39. Qxe5 {[%emt 0:02:41]} fxe5 {[%emt 0:00:02]} 40. Rd5 {[%emt 0:00:09]} b4 {[%emt 0:00:42]} 41. axb4 {[%emt 0:33:18]} axb4 {[%emt 0:30:18]} 42. Rb5 {[%emt 0:00:02]} Rxd6 {[%emt 0:00:32]} 43. Rxb4 {[%emt 0:00:01]} Re6 {[%emt 0:00:00]} 44. Kg3 {[%emt 0:00:00]} Kg7 {[%emt 0:00:00]} 45. Kf3 {[%emt 0:00:00]} Kf6 {[%emt 0:00:00]} 46. Ke4 {[%emt 0:00:00]} Rd6 {[%emt 0:00:00]} 47. g4 {[%emt 0:00:00]} h5 {[%emt 0:00:00]} 48. gxh5 {[%emt 0:00:00]} Rd4+ {[%emt 0:00:00]} 49. Rxd4 {[%emt 0:00:00]} exd4 {[%emt 0:00:00]} 50. h4 {[%emt 0:00:00]} d3 {[%emt 0:00:00]} 51. Kxd3 {[%emt 0:00:00]} Kg7 {[%emt 0:00:00]} 52. Ke4 {[%emt 0:00:00]} Kh6 {[%emt 0:00:00]} 53. Kf4 {[%emt 0:00:00]} Kxh5 {[%emt 0:00:00]} 54. Kg3 {[%emt 0:00:00]} Kh6 {[%emt 0:00:00]} 55. Kg4 {[%emt 0:00:00]} Kh7 {[%emt 0:00:00]} 56. Kg5 {[%emt 0:00:00]} Kh8 {[%emt 0:00:00]} 57. Kg6 {[%emt 0:00:00]} Kg8 {[%emt 0:00:00]} 1/2-1/2

[Event "Niedersachsen-ch B 2024"]
[Site "Verden Aller"]
[Date "2024.01.06"]
[Round "6.10"]
[White "Golke, Philipp"]
[Black "Balazs, Kata"]
[Result "1/2-1/2"]
[ECO "B01"]
[WhiteElo "1490"]
[BlackElo "1723"]
[Annotator "NA RC"]
[PlyCount "87"]
[EventDate "2024.01.01"]
[EventType "swiss"]
[EventCountry "GER"]
[SourceTitle "playchess.com"]
[Source "ChessBase"]
[SourceQuality "1"]
[TimeControl "40/5400+30:1800+30"]

1. e4 {[%emt 0:00:04]} d5 {[%emt 0:00:06]} 2. exd5 {[%emt 0:00:06]} Qxd5 {[%emt 0:00:04]} 3. Nc3 {[%emt 0:00:08]} Qa5 {[%emt 0:00:04]} 4. Nf3 {[%emt 0:01:04]} Nf6 {[%emt 0:00:22]} 5. Bc4 {[%emt 0:00:38]} Bg4 {[%emt 0:03:37]} 6. h3 {[%emt 0:01:12]} Bxf3 {[%emt 0:02:14]} 7. Qxf3 {[%emt 0:00:09]} c6 {[%emt 0:00:07]} 8. O-O {[%emt 0:01:31]} e6 {[%emt 0:01:29]} 9. d3 {[%emt 0:01:31]} Bd6 {[%emt 0:02:05]} 10. Bd2 {[%emt 0:01:09]} Qc7 {[%emt 0:02:40]} 11. Rfe1 {[%emt 0:04:52]} O-O {[%emt 0:00:44]} 12. Bg5 {[%emt 0:05:14]} Nbd7 {[%emt 0:01:26]} 13. Bxf6 {[%emt 0:11:17]} Nxf6 {[%emt 0:00:21]} 14. Ne4 {[%emt 0:02:04]} Be5 {[%emt 0:10:45]} 15. c3 {[%emt 0:02:42]} Rfd8 {[%emt 0:06:03]} 16. d4 {[%emt 0:03:44]} Nxe4 {[%emt 0:00:51]} 17. Qxe4 {[%emt 0:00:07]} Bf6 {[%emt 0:01:01]} 18. Rad1 {[%emt 0:06:28]} Rd7 {[%emt 0:04:44]} 19. d5 {[%emt 0:19:10]} cxd5 {[%emt 0:05:24]} 20. Bxd5 {[%emt 0:00:08]} Rad8 {[%emt 0:01:35]} 21. Bb3 {[%emt 0:00:23]} Rd2 {[%emt 0:03:12]} 22. Rxd2 {[%emt 0:05:33]} Rxd2 {[%emt 0:00:11]} 23. Re2 {[%emt 0:00:10]} Qd7 {[%emt 0:05:59]} 24. Qe3 {[%emt 0:04:42]} Bg5 {[%emt 0:13:35]} 25. Rxd2 {[%emt 0:01:53]} Qxd2 {[%emt 0:00:38]} 26. Qxd2 {[%emt 0:00:12]} Bxd2 {[%emt 0:00:04]} 27. Bc2 {[%emt 0:00:10]} Kf8 {[%emt 0:02:25]} 28. Kf1 {[%emt 0:00:06]} Bc1 {[%emt 0:00:50]} 29. b3 {[%emt 0:00:05]} Bb2 {[%emt 0:00:27]} 30. c4 {[%emt 0:00:06]} Ke7 {[%emt 0:00:33]} 31. Ke2 {[%emt 0:00:05]} f5 {[%emt 0:05:25]} 32. f3 {[%emt 0:01:18]} h5 {[%emt 0:08:52]} 33. Ke3 {[%emt 0:03:01]} g5 {[%emt 0:04:34]} 34. g4 {[%emt 0:00:33]} Kf6 {[%emt 0:02:48]} 35. b4 {[%emt 0:02:38]} hxg4 {[%emt 0:06:20]} 36. hxg4 {[%emt 0:01:39]} Ke5 {[%emt 0:00:18]} 37. gxf5 {[%emt 0:01:49]} exf5 {[%emt 0:00:07]} 38. b5 {[%emt 0:04:48]} b6 {[%emt 0:03:23]} 39. Kf2 {[%emt 0:05:09]} Kf4 {[%emt 0:01:46]} 40. Ke2 {[%emt 0:01:50]} Bd4 {[%emt 0:01:37]} 41. Kf1 {[%emt 0:36:15]} Kxf3 {[%emt 0:13:52]} 42. Bxf5 {[%emt 0:00:00]} g4 {[%emt 0:00:11]} 43. Be6 {[%emt 0:00:00]} g3 {[%emt 0:00:47]} 44. Bd5+ {[%emt 0:00:00]} 1/2-1/2

[Event "Niedersachsen-ch B 2024"]
[Site "Verden Aller"]
[Date "2024.01.06"]
[Round "6.11"]
[White "Fels, Mattis"]
[Black "Leppert, Hans-Juergen"]
[Result "0-1"]
[ECO "D00"]
[WhiteElo "1572"]
[BlackElo "1683"]
[Annotator "NA RC"]
[PlyCount "140"]
[EventDate "2024.01.01"]
[EventType "swiss"]
[EventCountry "GER"]
[SourceTitle "playchess.com"]
[Source "ChessBase"]
[SourceQuality "1"]
[TimeControl "40/5400+30:1800+30"]

1. d4 {[%emt 0:00:01]} Nf6 {[%emt 0:00:16]} 2. Nc3 {[%emt 0:00:06]} e6 {[%emt 0:00:16]} 3. Bf4 {[%emt 0:00:11]} d5 {[%emt 0:00:20]} 4. Nb5 {[%emt 0:00:18]} Bb4+ {[%emt 0:00:17]} 5. c3 {[%emt 0:00:10]} Ba5 {[%emt 0:00:05]} 6. b4 {[%emt 0:00:17]} Bb6 {[%emt 0:00:10]} 7. a4 {[%emt 0:00:20]} a6 {[%emt 0:00:11]} 8. a5 {[%emt 0:00:12]} axb5 {[%emt 0:00:28]} 9. axb6 {[%emt 0:00:07]} Rxa1 {[%emt 0:00:13]} 10. Qxa1 {[%emt 0:00:25]} Na6 {[%emt 0:00:34]} 11. e3 {[%emt 0:00:32]} Bd7 {[%emt 0:00:17]} 12. Nf3 {[%emt 0:02:03]} cxb6 {[%emt 0:00:33]} 13. Bd3 {[%emt 0:00:31]} O-O {[%emt 0:00:42]} 14. Ne5 {[%emt 0:00:13]} Ne8 {[%emt 0:14:07]} 15. h4 {[%emt 0:02:46]} f6 {[%emt 0:00:21]} 16. Nf3 {[%emt 0:00:54]} Bc6 {[%emt 0:00:45]} 17. Qb1 {[%emt 0:01:03]} f5 {[%emt 0:01:39]} 18. g4 {[%emt 0:01:45]} Nd6 {[%emt 0:05:04]} 19. Bxd6 {[%emt 0:02:19]} Qxd6 {[%emt 0:00:09]} 20. gxf5 {[%emt 0:00:34]} exf5 {[%emt 0:00:52]} 21. Bxf5 {[%emt 0:00:56]} g6 {[%emt 0:08:06]} 22. Rg1 {[%emt 0:00:42]} Kh8 {[%emt 0:01:48]} 23. Bg4 {[%emt 0:10:25]} Be8 {[%emt 0:01:26]} 24. Rh1 {[%emt 0:16:41]} h5 {[%emt 0:00:36]} 25. Ng5 {[%emt 0:01:32]} hxg4 {[%emt 0:00:26]} 26. h5 {[%emt 0:00:42]} Kg7 {[%emt 0:05:36]} 27. h6+ {[%emt 0:07:30]} Kh8 {[%emt 0:01:03]} 28. Qd1 {[%emt 0:08:05]} Qf6 {[%emt 0:00:44]} 29. f4 {[%emt 0:01:06]} gxf3 {[%emt 0:00:15]} 30. Nh3 {[%emt 0:00:43]} Qh4+ {[%emt 0:00:52]} 31. Nf2 {[%emt 0:00:26]} Qg3 {[%emt 0:01:47]} 32. Qd2 {[%emt 0:01:51]} Bf7 {[%emt 0:01:06]} 33. h7 {[%emt 0:02:09]} Re8 {[%emt 0:00:21]} 34. Kd1 {[%emt 0:01:52]} Qg5 {[%emt 0:02:01]} 35. e4 {[%emt 0:00:58]} Qxd2+ {[%emt 0:00:29]} 36. Kxd2 {[%emt 0:00:10]} dxe4 {[%emt 0:00:14]} 37. Ng4 {[%emt 0:00:17]} Bd5 {[%emt 0:09:01]} 38. Ne5 {[%emt 0:00:28]} e3+ {[%emt 0:03:14]} 39. Kxe3 {[%emt 0:01:12]} Kg7 {[%emt 0:00:20]} 40. Kf2 {[%emt 0:00:20]} Rh8 {[%emt 0:00:21]} 41. Nxf3 {[%emt 0:30:47]} Bxf3 {[%emt 0:30:28]} 42. Kxf3 {[%emt 0:00:14]} Rxh7 {[%emt 0:00:06]} 43. Rxh7+ {[%emt 0:00:12]} Kxh7 {[%emt 0:00:17]} 44. Kg4 {[%emt 0:01:09]} Kh6 {[%emt 0:00:15]} 45. Kf4 {[%emt 0:00:06]} g5+ {[%emt 0:00:10]} 46. Kg4 {[%emt 0:00:05]} Kg6 {[%emt 0:00:15]} 47. d5 {[%emt 0:00:06]} Nb8 {[%emt 0:00:17]} 48. d6 {[%emt 0:00:10]} Nd7 {[%emt 0:00:10]} 49. Kg3 {[%emt 0:00:35]} Kf5 {[%emt 0:00:18]} 50. Kg2 {[%emt 0:00:25]} Kg4 {[%emt 0:00:20]} 51. Kf2 {[%emt 0:00:45]} Kh3 {[%emt 0:00:13]} 52. Kg1 {[%emt 0:00:08]} Kg3 {[%emt 0:00:27]} 53. Kf1 {[%emt 0:00:05]} Kh2 {[%emt 0:00:32]} 54. c4 {[%emt 0:00:03]} bxc4 {[%emt 0:00:16]} 55. b5 {[%emt 0:00:02]} g4 {[%emt 0:00:12]} 56. Ke2 {[%emt 0:00:05]} g3 {[%emt 0:00:22]} 57. Ke3 {[%emt 0:00:24]} g2 {[%emt 0:00:12]} 58. Kd4 {[%emt 0:00:03]} g1=Q+ {[%emt 0:00:20]} 59. Kxc4 {[%emt 0:00:09]} Qc5+ {[%emt 0:00:21]} 60. Kd3 {[%emt 0:00:09]} Qxb5+ {[%emt 0:00:21]} 61. Kd4 {[%emt 0:00:12]} Qc5+ {[%emt 0:00:17]} 62. Ke4 {[%emt 0:00:07]} Qxd6 {[%emt 0:00:22]} 63. Kf5 {[%emt 0:00:11]} Qe5+ {[%emt 0:00:16]} 64. Kg4 {[%emt 0:00:09]} Nf6+ {[%emt 0:00:46]} 65. Kf3 {[%emt 0:00:06]} Qe4+ {[%emt 0:00:19]} 66. Kf2 {[%emt 0:00:04]} Ng4+ {[%emt 0:00:55]} 67. Kf1 {[%emt 0:00:01]} Qc2 {[%emt 0:00:38]} 68. Ke1 {[%emt 0:00:01]} Qf2+ {[%emt 0:00:27]} 69. Kd1 {[%emt 0:00:05]} Ne3+ {[%emt 0:00:08]} 70. Kc1 {[%emt 0:00:03]} Qc2# {[%emt 0:00:47]} 0-1

[Event "Niedersachsen-ch B 2024"]
[Site "Verden Aller"]
[Date "2024.01.06"]
[Round "6.12"]
[White "Junge, Julia Marie"]
[Black "Direk, Oguzhan"]
[Result "0-1"]
[ECO "B48"]
[WhiteElo "1401"]
[BlackElo "1657"]
[Annotator "NA RC"]
[PlyCount "118"]
[EventDate "2024.01.01"]
[EventType "swiss"]
[EventCountry "GER"]
[SourceTitle "playchess.com"]
[Source "ChessBase"]
[SourceQuality "1"]
[TimeControl "40/5400+30:1800+30"]

1. e4 {[%emt 0:00:14]} c5 {[%emt 0:02:30]} 2. Nf3 {[%emt 0:00:31]} e6 {[%emt 0:00:11]} 3. d4 {[%emt 0:04:29]} cxd4 {[%emt 0:02:08]} 4. Nxd4 {[%emt 0:00:07]} Nc6 {[%emt 0:00:02]} 5. a3 {[%emt 0:03:32]} Qc7 {[%emt 0:00:23]} 6. Nc3 {[%emt 0:02:14]} a6 {[%emt 0:00:22]} 7. Be3 {[%emt 0:01:16]} Nf6 {[%emt 0:01:24]} 8. Be2 {[%emt 0:01:33]} Ne5 {[%emt 0:05:02]} 9. h3 {[%emt 0:07:58]} b5 {[%emt 0:03:48]} 10. O-O {[%emt 0:06:12]} Bb7 {[%emt 0:03:42]} 11. f4 {[%emt 0:05:05]} Nc4 {[%emt 0:00:19]} 12. Bxc4 {[%emt 0:00:15]} Qxc4 {[%emt 0:00:10]} 13. e5 {[%emt 0:00:52]} Nd5 {[%emt 0:03:45]} 14. Nxd5 {[%emt 0:00:42]} Qxd5 {[%emt 0:00:13]} 15. Nf3 {[%emt 0:01:03]} Bc5 {[%emt 0:01:13]} 16. Bxc5 {[%emt 0:00:21]} Qxc5+ {[%emt 0:00:02]} 17. Kh2 {[%emt 0:01:06]} O-O {[%emt 0:01:08]} 18. Rc1 {[%emt 0:03:33]} Bd5 {[%emt 0:01:06]} 19. Qd4 {[%emt 0:01:48]} Rfc8 {[%emt 0:03:15]} 20. Qf2 {[%emt 0:06:10]} a5 {[%emt 0:06:50]} 21. Qh4 {[%emt 0:01:37]} Bxf3 {[%emt 0:02:50]} 22. Rxf3 {[%emt 0:00:19]} Qd4 {[%emt 0:00:03]} 23. Rg3 {[%emt 0:02:24]} d6 {[%emt 0:06:41]} 24. Qf6 {[%emt 0:09:05]} g6 {[%emt 0:01:54]} 25. h4 {[%emt 0:00:34]} dxe5 {[%emt 0:02:03]} 26. fxe5 {[%emt 0:00:45]} Rc4 {[%emt 0:00:26]} 27. Kh3 {[%emt 0:01:13]} Qd8 {[%emt 0:01:19]} 28. Rf3 {[%emt 0:03:53]} Qxf6 {[%emt 0:01:35]} 29. exf6 {[%emt 0:00:25]} Rd8 {[%emt 0:00:31]} 30. Rf2 {[%emt 0:03:12]} Rd5 {[%emt 0:02:56]} 31. g4 {[%emt 0:03:00]} h5 {[%emt 0:00:35]} 32. Rg2 {[%emt 0:05:46]} Rf4 {[%emt 0:02:10]} 33. Rcg1 {[%emt 0:01:57]} Rxf6 {[%emt 0:02:23]} 34. gxh5 {[%emt 0:00:56]} Rxh5 {[%emt 0:00:02]} 35. Rg5 {[%emt 0:00:28]} Rf3+ {[%emt 0:00:23]} 36. R5g3 {[%emt 0:00:11]} Rxg3+ {[%emt 0:00:41]} 37. Rxg3 {[%emt 0:00:11]} Rd5 {[%emt 0:00:08]} 38. Rg2 {[%emt 0:00:14]} Kg7 {[%emt 0:00:13]} 39. Kg3 {[%emt 0:03:56]} f5 {[%emt 0:00:29]} 40. Kf3 {[%emt 0:00:37]} Kf6 {[%emt 0:00:13]} 41. Rh2 {[%emt 0:31:32]} e5 {[%emt 0:30:43]} 42. Ke2 {[%emt 0:01:07]} e4 {[%emt 0:01:11]} 43. h5 {[%emt 0:00:08]} gxh5 {[%emt 0:00:59]} 44. Rxh5 {[%emt 0:00:43]} Kg6 {[%emt 0:00:08]} 45. Rh3 {[%emt 0:00:17]} f4 {[%emt 0:00:19]} 46. b3 {[%emt 0:00:29]} Rc5 {[%emt 0:00:47]} 47. Kd2 {[%emt 0:00:16]} e3+ {[%emt 0:00:22]} 48. Kd1 {[%emt 0:00:50]} Kg5 {[%emt 0:00:21]} 49. Rh8 {[%emt 0:00:08]} Kg4 {[%emt 0:00:12]} 50. Rg8+ {[%emt 0:00:28]} Kf3 {[%emt 0:00:07]} 51. Rh8 {[%emt 0:05:31]} Rd5+ {[%emt 0:02:59]} 52. Ke1 {[%emt 0:00:28]} Rg5 {[%emt 0:00:06]} 53. Rh3+ {[%emt 0:01:05]} Rg3 {[%emt 0:00:17]} 54. Rh1 {[%emt 0:00:33]} Kg2 {[%emt 0:00:46]} 55. Rf1 {[%emt 0:00:18]} Rf3 {[%emt 0:00:36]} 56. Rxf3 {[%emt 0:00:39]} Kxf3 {[%emt 0:00:02]} 57. c4 {[%emt 0:00:18]} bxc4 {[%emt 0:00:07]} 58. bxc4 {[%emt 0:00:07]} Ke4 {[%emt 0:00:03]} 59. c5 {[%emt 0:00:42]} Kd5 {[%emt 0:00:02]} 0-1